fUST/lending_fUST_20240805
["ID","MTS","AMOUNT","RATE_DAILY","PERIOD"]
[334241085,1722855052867,-500.0,0.00042191,31]
[334241086,1722855052876,-500.0,0.00042191,31]
[334241087,1722855052886,-500.0,0.00042191,31]
[334241088,1722855052895,-500.0,0.00042191,31]
[334241089,1722855052904,-500.0,0.00042191,31]
[334241090,1722855052915,-500.0,0.00042191,31]
[334241091,1722855052927,-500.0,0.00042191,31]
[334241092,1722855052936,-548.75,0.00042191,31]
[334241093,1722855052945,-920.73,0.00042191,31]
[334241094,1722855052954,-500.0,0.00042191,31]
[334241095,1722855052963,-500.0,0.00042191,31]
[334241096,1722855052972,-500.0,0.00042191,31]
[334241097,1722855052982,-1263.83,0.00042191,31]
[334241098,1722855052991,-1237.48,0.00042191,31]
[334241099,1722855053001,-500.0,0.00042191,31]
[334241100,1722855053010,-500.0,0.00042191,31]
[334241101,1722855053019,-500.0,0.00042191,31]
[334241102,1722855053029,-500.0,0.00042191,31]
[334241103,1722855053038,-500.0,0.00042191,31]
[334241104,1722855053047,-500.0,0.00042191,31]
[334241105,1722855053056,-500.0,0.00042191,31]
[334241106,1722855053065,-500.0,0.00042191,31]
[334241107,1722855053074,-2406.0,0.00042191,31]
[334241108,1722855053084,-500.0,0.00042191,31]
[334241109,1722855053093,-839.85,0.00042191,31]
[334241110,1722855053212,-500.0,0.00042191,31]
[334241111,1722855053223,-500.0,0.00042191,31]
[334241112,1722855053232,-1572.12,0.00042191,31]
[334241113,1722855053242,-366.6979919,0.00042191,31]
[334241114,1722855053251,-500.0,0.00042191,31]
[334241115,1722855053261,-500.0,0.00042191,31]
[334241116,1722855053270,-662.89,0.00042191,31]
[334241117,1722855053280,-500.0,0.00042191,31]
[334241118,1722855053290,-1626.65,0.00042191,31]
[334241119,1722855053299,-500.0,0.00042191,31]
[334241120,1722855053309,-7412.01,0.00042191,31]
[334241121,1722855053319,-332.02434031,0.00042191,31]
[334241122,1722855053328,-500.0,0.00042191,31]
[334241123,1722855053338,-500.0,0.00042191,31]
[334241124,1722855053347,-500.0,0.00042191,31]
[334241125,1722855053356,-1323.45,0.00042191,31]
[334241126,1722855053365,-985.18,0.00042191,31]
[334241127,1722855053375,-500.0,0.00042191,31]
[334241128,1722855053384,-1213.77,0.00042191,31]
[334241129,1722855053393,-500.0,0.00042191,31]
[334241130,1722855053402,-500.0,0.00042191,31]
[334241131,1722855053412,-16757.11,0.00042191,31]
[334241132,1722855053424,-500.0,0.00042191,31]
[334241133,1722855053433,-500.0,0.00042191,31]
[334241134,1722855053443,-1041.3,0.00042191,31]
[334241135,1722855053453,-500.0,0.00042191,31]
[334241136,1722855053463,-500.0,0.00042191,31]
[334241137,1722855053472,-3947.2,0.00042191,31]
[334241138,1722855053481,-500.0,0.00042191,31]
[334241139,1722855053491,-560.16,0.00042191,31]
[334241140,1722855053501,-500.0,0.00042191,31]
[334241141,1722855053510,-2691.18,0.00042191,21]
[334241142,1722855053520,-500.0,0.00042191,31]
[334241143,1722855053530,-500.0,0.00042191,31]
[334241144,1722855053539,-2605.65,0.00042191,31]
[334241145,1722855053550,-1132.49,0.00042191,31]
[334241146,1722855053559,-500.0,0.00042191,31]
[334241147,1722855053568,-3409.21,0.00042191,31]
[334241148,1722855053578,-755.25,0.00042191,31]
[334241149,1722855053587,-500.0,0.00042191,31]
[334241150,1722855053597,-500.0,0.00042191,31]
[334241151,1722855053607,-2306.12,0.00042191,31]
[334241152,1722855053617,-991.13,0.00042191,31]
[334241153,1722855053627,-500.0,0.00042191,31]
[334241154,1722855053636,-500.0,0.00042191,31]
[334241155,1722855053646,-500.0,0.00042191,31]
[334241156,1722855053655,-500.0,0.00042191,31]
[334241157,1722855053664,-2755.91,0.00042191,31]
[334241158,1722855053677,-500.0,0.00042191,31]
[334241159,1722855053686,-500.0,0.00042191,31]
[334241160,1722855053696,-500.0,0.00042191,31]
[334241161,1722855053705,-500.0,0.00042191,31]
[334241162,1722855053714,-500.0,0.00042191,31]
[334241163,1722855053724,-533.03,0.00042191,31]
[334241164,1722855053733,-310.01644278,0.00042191,31]
[334241165,1722855053742,-500.0,0.00042191,31]
[334241166,1722855053752,-500.0,0.00042191,31]
[334241167,1722855053765,-4944.89,0.00042191,31]
[334241168,1722855053775,-564.36700079,0.00042191,31]
[334241169,1722855053784,-529.71,0.00042191,31]
[334241170,1722855053794,-937.48,0.00042191,31]
[334241171,1722855053803,-500.0,0.00042191,31]
[334241172,1722855053814,-687.97,0.00042191,31]
[334241173,1722855053824,-500.0,0.00042191,31]
[334241174,1722855053835,-500.0,0.00042191,31]
[334241175,1722855053848,-500.0,0.00042191,31]
[334241176,1722855053858,-500.0,0.00042191,31]
[334241177,1722855053868,-664.19,0.00042191,31]
[334241178,1722855053878,-500.0,0.00042191,31]
[334241179,1722855053888,-500.0,0.00042191,31]
[334241180,1722855053898,-519.00826691,0.00042191,31]
[334241181,1722855053908,-9471.47,0.00042191,31]
[334241182,1722855053918,-500.0,0.00042191,31]
[334241183,1722855053931,-500.0,0.00042191,31]
[334241184,1722855053941,-865.03,0.00042191,31]
[334241185,1722855053950,-506.48,0.00042191,31]
[334241186,1722855053960,-1066.85,0.00042191,31]
[334241187,1722855053969,-636.68,0.00042191,31]
[334241188,1722855053979,-500.0,0.00042191,31]
[334241189,1722855053989,-500.0,0.00042191,31]
[334241190,1722855053998,-500.0,0.00042191,31]
[334241191,1722855054007,-1286.88,0.00042191,31]
[334241192,1722855054017,-500.0,0.00042191,31]
[334241193,1722855054027,-500.0,0.00042191,31]
[334241194,1722855054037,-500.0,0.00042191,31]
[334241195,1722855054047,-500.0,0.00042191,31]
[334241196,1722855054056,-801.23,0.00042191,31]
[334241197,1722855054066,-500.0,0.00042191,31]
[334241198,1722855054075,-597.11,0.00042191,31]
[334241199,1722855054085,-500.0,0.00042191,31]
[334241200,1722855054094,-500.0,0.00042191,31]
[334241201,1722855054104,-270.59695143,0.00042191,31]
[334241202,1722855054113,-500.0,0.00042191,31]
[334241203,1722855054123,-500.0,0.00042191,31]
[334241204,1722855054132,-1215.94,0.00042191,31]
[334241205,1722855054141,-500.0,0.00042191,31]
[334241206,1722855054150,-500.0,0.00042191,31]
[334241207,1722855054160,-1028.52,0.00042191,31]
[334241208,1722855054169,-1090.76,0.00042191,31]
[334241209,1722855054182,-593.83,0.00042191,31]
[334241210,1722855054192,-500.0,0.00042191,31]
[334241211,1722855054201,-500.0,0.00042191,31]
[334241212,1722855054211,-736.79,0.00042191,31]
[334241213,1722855054220,-873.59,0.00042191,31]
[334241214,1722855054230,-964.57,0.00042191,31]
[334241215,1722855054239,-7408.01,0.00042191,31]
[334241216,1722855054249,-500.0,0.00042191,31]
[334241217,1722855054259,-500.0,0.00042191,31]
[334241218,1722855054269,-659.9,0.00042191,31]
[334241219,1722855054278,-500.0,0.00042191,31]
[334241220,1722855054288,-11598.75,0.00042191,31]
[334241221,1722855054297,-500.0,0.00042191,31]
[334241222,1722855054308,-500.0,0.00042191,31]
[334241223,1722855054317,-1709.24,0.00042191,31]
[334241224,1722855054327,-1187.93,0.00042191,31]
[334241225,1722855054336,-894.23,0.00042191,31]
[334241226,1722855054346,-500.0,0.00042191,31]
[334241227,1722855054356,-500.0,0.00042191,31]
[334241228,1722855054366,-500.0,0.00042191,31]
[334241229,1722855054375,-4819.05,0.00042191,31]
[334241230,1722855054385,-500.0,0.00042191,31]
[334241231,1722855054395,-461.60627127,0.00042191,31]
[334241232,1722855054404,-2369.35,0.00042191,31]
[334241233,1722855054414,-500.0,0.00042191,31]
[334241234,1722855054430,-14683.88,0.00042191,120]
[334241235,1722855054440,-3808.57,0.00042191,31]
[334241236,1722855054450,-1143.54,0.00042191,31]
[334241237,1722855054460,-500.0,0.00042191,31]
[334241238,1722855054469,-351.83,0.000422,30]
[334241239,1722855054479,-160.0,0.00042432,3]
[334241240,1722855054489,-160.0,0.00042432,5]
[334241241,1722855054498,-33922.15588109,0.0004244,15]
[334241242,1722855054508,-500000.0,0.0004244,30]
[334241243,1722855054518,-45133.85271231,0.000426,60]
[334241244,1722855054527,-151.0,0.00042603,120]
[334241245,1722855054537,-5112.575,0.0004264,120]
[334241246,1722855054547,-151.0,0.00042739,14]
[334241247,1722855054556,-5000.0,0.00042739,60]
[334241248,1722855054566,-500.0,0.00042739,31]
[334241249,1722855054576,-500.0,0.00042739,31]
[334241250,1722855054585,-500.0,0.00042739,31]
[334241251,1722855054594,-500.0,0.00042739,31]
[334241252,1722855054604,-500.0,0.00042739,31]
[334241253,1722855054613,-500.0,0.00042739,31]
[334241254,1722855054623,-500.0,0.00042739,31]
[334241255,1722855054632,-500.0,0.00042739,31]
[334241256,1722855054642,-500.0,0.00042739,31]
[334241257,1722855054652,-500.0,0.00042739,31]
[334241258,1722855054661,-500.0,0.00042739,31]
[334241259,1722855054672,-152.64890465,0.00042739,31]
[334241260,1722855054682,-245.91906743,0.00042739,31]
[334241261,1722855054691,-500.0,0.00042739,31]
[334241262,1722855054701,-500.0,0.00042739,31]
[334241263,1722855054710,-500.0,0.00042739,31]
[334241264,1722855054719,-500.0,0.00042739,31]
[334241265,1722855054729,-1458.86,0.00042739,31]
[334241266,1722855054738,-518.46,0.00042739,31]
[334241267,1722855054747,-500.0,0.00042739,31]
[334241268,1722855054757,-500.0,0.00042739,31]
[334241269,1722855054767,-500.0,0.00042739,31]
[334241270,1722855054779,-740.66,0.00042739,31]
[334241271,1722855054789,-635.54,0.00042739,31]
[334241272,1722855054799,-500.0,0.00042739,31]
[334241273,1722855054808,-182.375756,0.00042739,31]
[334241274,1722855054817,-200.0,0.00042739,7]
[334241275,1722855054826,-500.0,0.00042739,31]
[334241276,1722855054836,-500.0,0.00042739,31]
[334241277,1722855054846,-506.65417424,0.00042739,31]
[334241278,1722855054855,-500.0,0.00042739,31]
[334241279,1722855054865,-500.0,0.00042739,31]
[334241280,1722855054875,-517.66,0.00042739,31]
[334241281,1722855054885,-719.7,0.00042739,31]
[334241282,1722855054894,-793.81,0.00042739,31]
[334241283,1722855054904,-500.0,0.00042739,31]
[334241284,1722855054914,-500.0,0.00042739,31]
[334241285,1722855054928,-500.0,0.00042739,31]
[334241286,1722855054939,-500.0,0.00042739,31]
[334241287,1722855054949,-1510.24,0.00042739,31]
[334241288,1722855054959,-553.5554284,0.00042739,31]
[334241289,1722855054968,-500.0,0.00042739,31]
[334241290,1722855054978,-500.0,0.00042739,31]
[334241291,1722855054988,-500.0,0.00042739,31]
[334241292,1722855054997,-703.47,0.00042739,31]
[334241293,1722855055004,-500.0,0.00042739,31]
[334241294,1722855055013,-500.0,0.00042739,31]
[334241295,1722855055022,-500.0,0.00042739,31]
[334241296,1722855055032,-222.10711758,0.00042739,31]
[334241297,1722855055041,-468.91441872,0.00042739,31]
[334241298,1722855055050,-500.0,0.00042739,31]
[334241299,1722855055059,-843.22,0.00042739,31]
[334241300,1722855055069,-500.0,0.00042739,31]
[334241301,1722855055078,-513.0,0.00042739,31]
[334241302,1722855055087,-500.0,0.00042739,31]
[334241303,1722855055096,-500.0,0.00042739,31]
[334241304,1722855055105,-474.13404958,0.00042739,31]
[334241305,1722855055114,-399.15404081,0.00042739,31]
[334241306,1722855055123,-500.0,0.00042739,31]
[334241307,1722855055132,-500.0,0.00042739,31]
[334241308,1722855055141,-500.0,0.00042739,31]
[334241309,1722855055150,-500.0,0.00042739,31]
[334241310,1722855055159,-500.0,0.00042739,31]
[334241311,1722855055168,-606.39,0.00042739,31]
[334241312,1722855055181,-1217.41,0.00042739,31]
[334241313,1722855055190,-948.05,0.00042739,31]
[334241314,1722855055199,-500.0,0.00042739,31]
[334241315,1722855055208,-500.0,0.00042739,31]
[334241316,1722855055216,-689.27,0.00042739,31]
[334241317,1722855055225,-646.58,0.00042739,31]
[334241318,1722855055234,-500.0,0.00042739,31]
[334241319,1722855055243,-500.0,0.00042739,31]
[334241320,1722855055252,-500.0,0.00042739,31]
[334241321,1722855055262,-500.0,0.00042739,31]
[334241322,1722855055270,-500.0,0.00042739,31]
[334241323,1722855055279,-986.54,0.00042739,31]
[334241324,1722855055288,-547.81693623,0.00042739,31]
[334241325,1722855055297,-500.0,0.00042739,31]
[334241326,1722855055306,-500.0,0.00042739,31]
[334241327,1722855055315,-500.0,0.00042739,31]
[334241328,1722855055324,-500.0,0.00042739,31]
[334241329,1722855055333,-500.0,0.00042739,31]
[334241330,1722855055342,-500.0,0.00042739,31]
[334241331,1722855055351,-220.43645565,0.00042739,31]
[334241332,1722855055360,-516.67,0.00042739,31]
[334241333,1722855055369,-500.0,0.00042739,31]
[334241334,1722855055379,-500.0,0.00042739,31]
[334241335,1722855055388,-500.0,0.00042739,31]
[334241336,1722855055397,-500.0,0.00042739,31]
[334241337,1722855055407,-500.0,0.00042739,31]
[334241338,1722855055417,-561.44,0.00042739,31]
[334241339,1722855055430,-500.0,0.00042739,31]
[334241340,1722855055439,-505.21773353,0.00042739,31]
[334241341,1722855055449,-1409.15,0.00042739,31]
[334241342,1722855055458,-313.13041613,0.00042739,31]
[334241343,1722855055468,-500.0,0.00042739,31]
[334241344,1722855055477,-1083.53,0.00042739,31]
[334241345,1722855055486,-1193.48,0.00042739,31]
[334241346,1722855055496,-500.0,0.00042739,31]
[334241347,1722855055507,-500.0,0.00042739,31]
[334241348,1722855055516,-500.0,0.00042739,30]
[334241349,1722855055526,-500.0,0.00042739,31]
[334241350,1722855055535,-538.97,0.00042739,31]
[334241351,1722855055666,-1078.1,0.00042739,31]
[334241352,1722855055684,-1649.0,0.00042739,31]
[334241353,1722855055693,-500.0,0.00042739,31]
[334241354,1722855055702,-500.0,0.00042739,31]
[334241355,1722855055711,-548.2058283,0.00042739,31]
[334241356,1722855055721,-500.0,0.00042739,31]
[334241357,1722855055730,-500.0,0.00042739,31]
[334241358,1722855055738,-500.0,0.00042739,31]
[334241359,1722855055748,-524.2355906,0.00042739,31]
[334241360,1722855055768,-500.0,0.00042739,31]
[334241361,1722855055784,-538.5,0.00042739,31]
[334241362,1722855055795,-500.0,0.00042739,31]
[334241363,1722855055807,-500.0,0.00042739,31]
[334241364,1722855055817,-500.0,0.00042739,31]
[334241365,1722855055827,-500.0,0.00042739,31]
[334241366,1722855055837,-560.86,0.00042739,31]
[334241367,1722855055849,-500.0,0.00042739,31]
[334241368,1722855055859,-500.0,0.00042739,31]
[334241369,1722855055870,-500.0,0.00042739,31]
[334241370,1722855055880,-500.0,0.00042739,31]
[334241371,1722855055890,-500.0,0.00042739,31]
[334241372,1722855055900,-1127.13,0.00042739,31]
[334241373,1722855055910,-500.0,0.00042739,30]
[334241374,1722855055922,-500.0,0.00042739,31]
[334241375,1722855055933,-500.0,0.00042739,31]
[334241376,1722855055942,-500.0,0.00042739,31]
[334241377,1722855055953,-500.0,0.00042739,31]
[334241378,1722855055963,-9778.98,0.00042739,31]
[334241379,1722855055972,-500.0,0.00042739,31]
[334241380,1722855055983,-701.63,0.00042739,31]
[334241381,1722855055992,-768.05,0.00042739,31]
[334241382,1722855056002,-987.68,0.00042739,31]
[334241383,1722855056013,-500.0,0.00042739,31]
[334241384,1722855056023,-151.0,0.00042739,14]
[334241385,1722855056034,-508.51,0.00042739,31]
[334241386,1722855056045,-500.0,0.00042739,31]
[334241387,1722855056055,-500.0,0.00042739,31]
[334241388,1722855056066,-748.56,0.00042739,31]
[334241389,1722855056076,-500.0,0.00042739,31]
[334241390,1722855056087,-500.0,0.00042739,31]
[334241391,1722855056098,-500.0,0.00042739,31]
[334241392,1722855056108,-500.0,0.00042739,31]
[334241393,1722855056119,-905.82,0.00042739,31]
[334241394,1722855056130,-500.0,0.00042739,31]
[334241395,1722855056142,-500.0,0.00042739,31]
[334241396,1722855056154,-499.99548233,0.00042739,31]
[334241397,1722855056165,-254.9933262,0.00042739,31]
[334241398,1722855056178,-1565.67,0.00042739,31]
[334241399,1722855056190,-500.0,0.00042739,31]
[334241400,1722855056200,-817.47,0.00042739,31]
[334241401,1722855056211,-341.4599383,0.00042739,31]
[334241402,1722855056222,-512.28431684,0.00042739,31]
[334241403,1722855056233,-500.0,0.00042739,31]
[334241404,1722855056243,-1007.12,0.00042739,31]
[334241405,1722855056253,-500.0,0.00042739,31]
[334241406,1722855056263,-500.0,0.00042739,31]
[334241407,1722855056274,-500.0,0.00042739,31]
[334241408,1722855056285,-1178.52,0.00042739,31]
[334241409,1722855056295,-179.085134,0.00042739,14]
[334241410,1722855056305,-714.52,0.00042739,31]
[334241411,1722855056315,-500.0,0.00042739,31]
[334241412,1722855056324,-500.0,0.00042739,31]
[334241413,1722855056334,-179.085134,0.00042739,14]
[334241414,1722855056345,-1039.78,0.00042739,31]
[334241415,1722855056355,-500.0,0.00042739,31]
[334241416,1722855056365,-151.0,0.00042739,14]
[334241417,1722855056375,-500.0,0.00042739,31]
[334241418,1722855056384,-1227.19,0.00042739,31]
[334241419,1722855056394,-500.0,0.00042739,31]
[334241420,1722855056404,-708.67,0.00042739,31]
[334241421,1722855056414,-500.0,0.00042739,31]
[334241422,1722855056431,-500.0,0.00042739,31]
[334241423,1722855056441,-500.0,0.00042739,31]
[334241424,1722855056451,-885.609088,0.00042739,14]
[334241425,1722855056461,-885.609088,0.00042739,14]
[334241426,1722855056471,-500.0,0.00042739,31]
[334241427,1722855056480,-523.85144156,0.00042739,31]
[334241428,1722855056490,-500.0,0.00042739,31]
[334241429,1722855056500,-642.624426,0.00042739,14]
[334241430,1722855056510,-500.0,0.00042739,31]
[334241431,1722855056519,-500.0,0.00042739,31]
[334241432,1722855056529,-170.502261,0.00042739,14]
[334241433,1722855056540,-642.624426,0.00042739,14]
[334241434,1722855056550,-548.75,0.00042739,31]
[334241435,1722855056559,-920.73,0.00042739,31]
[334241436,1722855056570,-500.0,0.00042739,31]
[334241437,1722855056580,-500.0,0.00042739,31]
[334241438,1722855056590,-1263.83,0.00042739,31]
[334241439,1722855056600,-151.0,0.00042739,14]
[334241440,1722855056609,-1237.48,0.00042739,31]
[334241441,1722855056619,-500.0,0.00042739,31]
[334241442,1722855056629,-500.0,0.00042739,31]
[334241443,1722855056639,-151.0,0.00042739,14]
[334241444,1722855056649,-500.0,0.00042739,31]
[334241445,1722855056659,-151.0,0.00042739,14]
[334241446,1722855056668,-500.0,0.00042739,31]
[334241447,1722855056682,-513.62944201,0.00042739,31]
[334241448,1722855056692,-500.0,0.00042739,31]
[334241449,1722855056702,-262.96642406,0.00042739,31]
[334241450,1722855056712,-151.0,0.00042739,14]
[334241451,1722855056722,-2043.734572,0.00042739,14]
[334241452,1722855056731,-500.0,0.00042739,31]
[334241453,1722855056741,-500.0,0.00042739,31]
[334241454,1722855056751,-2406.0,0.00042739,31]
[334241455,1722855056763,-2043.734572,0.00042739,14]
[334241456,1722855056773,-505.66543691,0.00042739,31]
[334241457,1722855056784,-839.85,0.00042739,31]
[334241458,1722855056794,-500.0,0.00042739,31]
[334241459,1722855056806,-418.781479,0.00042739,14]
[334241460,1722855056816,-500.0,0.00042739,31]
[334241461,1722855056825,-1572.12,0.00042739,31]
[334241462,1722855056835,-500.0,0.00042739,31]
[334241463,1722855056846,-500.0,0.00042739,31]
[334241464,1722855056857,-662.89,0.00042739,31]
[334241465,1722855056867,-418.781479,0.00042739,14]
[334241466,1722855056876,-500.0,0.00042739,31]
[334241467,1722855056886,-1626.65,0.00042739,31]
[334241468,1722855056895,-339.6601276,0.00042739,31]
[334241469,1722855056905,-7412.01,0.00042739,31]
[334241470,1722855056914,-500.0,0.00042739,31]
[334241471,1722855056927,-500.0,0.00042739,31]
[334241472,1722855056937,-194.102707,0.00042739,14]
[334241473,1722855056947,-500.0,0.00042739,31]
[334241474,1722855056958,-194.102707,0.00042739,14]
[334241475,1722855056967,-1323.45,0.00042739,31]
[334241476,1722855056977,-985.18,0.00042739,31]
[334241477,1722855056988,-151.0,0.00042739,14]
[334241478,1722855056998,-151.0,0.00042739,14]
[334241479,1722855057008,-500.0,0.00042739,31]
[334241480,1722855057018,-1213.77,0.00042739,31]
[334241481,1722855057027,-495.66635946,0.00042739,31]
[334241482,1722855057037,-500.0,0.00042739,31]
[334241483,1722855057047,-151.0,0.00042739,14]
[334241484,1722855057056,-16757.11,0.00042739,31]
[334241485,1722855057066,-500.0,0.00042739,31]
[334241486,1722855057075,-500.0,0.00042739,31]
[334241487,1722855057085,-1041.3,0.00042739,31]
[334241488,1722855057094,-500.0,0.00042739,31]
[334241489,1722855057104,-500.0,0.00042739,31]
[334241490,1722855057113,-3947.2,0.00042739,31]
[334241491,1722855057123,-500.0,0.00042739,31]
[334241492,1722855057132,-560.16,0.00042739,31]
[334241493,1722855057142,-151.0,0.00042739,14]
[334241494,1722855057152,-500.0,0.00042739,31]
[334241495,1722855057161,-2691.18,0.00042739,21]
[334241496,1722855057175,-500.0,0.00042739,31]
[334241497,1722855057185,-511.4751152,0.00042739,31]
[334241498,1722855057195,-2605.65,0.00042739,31]
[334241499,1722855057204,-1132.49,0.00042739,31]
[334241500,1722855057213,-646.01207146,0.00042739,31]
[334241501,1722855057222,-3409.21,0.00042739,31]
[334241502,1722855057232,-755.25,0.00042739,31]
[334241503,1722855057241,-500.0,0.00042739,31]
[334241504,1722855057250,-500.0,0.00042739,31]
[334241505,1722855057261,-2306.12,0.00042739,31]
[334241506,1722855057270,-991.13,0.00042739,31]
[334241507,1722855057280,-352.65997561,0.00042739,31]
[334241508,1722855057290,-500.0,0.00042739,31]
[334241509,1722855057303,-500.0,0.00042739,31]
[334241510,1722855057313,-508.98526433,0.00042739,31]
[334241511,1722855057323,-2755.91,0.00042739,31]
[334241512,1722855057333,-515.56888317,0.00042739,31]
[334241513,1722855057343,-500.0,0.00042739,31]
[334241514,1722855057353,-500.0,0.00042739,31]
[334241515,1722855057363,-500.0,0.00042739,31]
[334241516,1722855057373,-500.0,0.00042739,31]
[334241517,1722855057383,-533.03,0.00042739,31]
[334241518,1722855057393,-500.0,0.00042739,31]
[334241519,1722855057403,-500.0,0.00042739,31]
[334241520,1722855057412,-4944.89,0.00042739,31]
[334241521,1722855057426,-529.71,0.00042739,31]
[334241522,1722855057435,-937.48,0.00042739,31]
[334241523,1722855057447,-500.0,0.00042739,31]
[334241524,1722855057457,-687.97,0.00042739,31]
[334241525,1722855057467,-500.0,0.00042739,31]
[334241526,1722855057477,-500.0,0.00042739,31]
[334241527,1722855057487,-500.0,0.00042739,31]
[334241528,1722855057497,-664.19,0.00042739,31]
[334241529,1722855057507,-500.0,0.00042739,31]
[334241530,1722855057518,-500.0,0.00042739,31]
[334241531,1722855057528,-500.0,0.00042739,31]
[334241532,1722855057538,-9471.47,0.00042739,31]
[334241533,1722855057548,-500.0,0.00042739,31]
[334241534,1722855057558,-500.0,0.00042739,31]
[334241535,1722855057571,-865.03,0.00042739,31]
[334241536,1722855057581,-151.0,0.00042739,14]
[334241537,1722855057591,-506.48,0.00042739,31]
[334241538,1722855057601,-636.68,0.00042739,31]
[334241539,1722855057611,-1066.85,0.00042739,31]
[334241540,1722855057621,-500.0,0.00042739,31]
[334241541,1722855057632,-500.0,0.00042739,31]
[334241542,1722855057643,-500.0,0.00042739,31]
[334241543,1722855057653,-1286.88,0.00042739,31]
[334241544,1722855057663,-500.0,0.00042739,31]
[334241545,1722855057676,-500.0,0.00042739,31]
[334241546,1722855057687,-500.0,0.00042739,31]
[334241547,1722855057696,-500.0,0.00042739,31]
[334241548,1722855057706,-801.23,0.00042739,31]
[334241549,1722855057715,-500.0,0.00042739,31]
[334241550,1722855057725,-597.11,0.00042739,31]
[334241551,1722855057735,-415.131462,0.00042739,14]
[334241552,1722855057744,-500.0,0.00042739,31]
[334241553,1722855057754,-500.0,0.00042739,31]
[334241554,1722855057769,-415.131462,0.00042739,14]
[334241555,1722855057779,-500.0,0.00042739,31]
[334241556,1722855057789,-500.0,0.00042739,31]
[334241557,1722855057799,-500.0,0.00042739,31]
[334241558,1722855057809,-1215.94,0.00042739,31]
[334241559,1722855057820,-500.0,0.00042739,31]
[334241560,1722855057829,-653.391466,0.00042739,14]
[334241561,1722855057839,-1028.52,0.00042739,31]
[334241562,1722855057849,-1090.76,0.00042739,31]
[334241563,1722855057860,-593.83,0.00042739,31]
[334241564,1722855057870,-653.391466,0.00042739,14]
[334241565,1722855057880,-500.0,0.00042739,31]
[334241566,1722855057890,-287.46261,0.00042739,14]
[334241567,1722855057900,-609.54572276,0.00042739,31]
[334241568,1722855057909,-736.79,0.00042739,31]
[334241569,1722855057919,-873.59,0.00042739,31]
[334241570,1722855057931,-287.46261,0.00042739,14]
[334241571,1722855057941,-151.0,0.00042739,14]
[334241572,1722855058079,-964.57,0.00042739,31]
[334241573,1722855058090,-7408.01,0.00042739,31]
[334241574,1722855058100,-500.0,0.00042739,31]
[334241575,1722855058110,-500.0,0.00042739,31]
[334241576,1722855058120,-659.9,0.00042739,31]
[334241577,1722855058130,-500.0,0.00042739,31]
[334241578,1722855058139,-11598.75,0.00042739,31]
[334241579,1722855058149,-500.0,0.00042739,31]
[334241580,1722855058159,-500.0,0.00042739,31]
[334241581,1722855058169,-1709.24,0.00042739,31]
[334241582,1722855058181,-1187.93,0.00042739,31]
[334241583,1722855058190,-1035.038885,0.00042739,14]
[334241584,1722855058199,-894.23,0.00042739,31]